[Event "*** Titled Tuesday Blitz"]
[Site "Chess.com"]
[Date "2020.03.03"]
[Round "6"]
[White "VladimirBelous"]
[Black "champ2005"]
[Result "1-0"]
[WhiteElo "2799"]
[BlackElo "2959"]
[TimeControl "180+1"]
[EndTime "14:03:33 PST"]
[Termination "VladimirBelous won on time"]

1. c4 {[%clk 0:03:00.9]} 1... f5 {[%clk 0:02:58.9]} 2. g3 {[%clk 0:03:00.3]}
2... Nf6 {[%clk 0:02:59.1]} 3. Bg2 {[%clk 0:03:00.9]} 3... g6 {[%clk 0:02:59.7]}
4. Nc3 {[%clk 0:03:00.8]} 4... Bg7 {[%clk 0:03:00]} 5. Nf3 {[%clk 0:03:01.4]}
5... O-O {[%clk 0:03:00.3]} 6. O-O {[%clk 0:03:02.1]} 6... d6 {[%clk 0:03:00.3]}
7. d3 {[%clk 0:03:01.4]} 7... e5 {[%clk 0:02:59.6]} 8. Bg5 {[%clk 0:03:01.2]}
8... Nbd7 {[%clk 0:02:56.3]} 9. b4 {[%clk 0:02:55.1]} 9... h6 {[%clk 0:02:56.4]}
10. Bd2 {[%clk 0:02:55.3]} 10... g5 {[%clk 0:02:54.3]} 11. Rc1 {[%clk 0:02:52]}
11... Rf7 {[%clk 0:02:44.7]} 12. Nd5 {[%clk 0:02:33.8]} 12... c6 {[%clk
0:02:42.3]} 13. Nxf6+ {[%clk 0:02:32.1]} 13... Nxf6 {[%clk 0:02:43.2]} 14. b5
{[%clk 0:02:30.6]} 14... c5 {[%clk 0:02:41]} 15. a4 {[%clk 0:02:25.3]} 15... Be6
{[%clk 0:02:34.8]} 16. a5 {[%clk 0:02:22.5]} 16... Rb8 {[%clk 0:02:33.1]} 17.
Bc3 {[%clk 0:02:11.3]} 17... Nd7 {[%clk 0:02:14]} 18. e3 {[%clk 0:01:59.2]}
18... f4 {[%clk 0:02:12.1]} 19. Nd2 {[%clk 0:01:57.8]} 19... Qe7 {[%clk
0:02:05.2]} 20. exf4 {[%clk 0:01:50]} 20... gxf4 {[%clk 0:02:04.6]} 21. Ne4
{[%clk 0:01:47]} 21... Rbf8 {[%clk 0:02:03.6]} 22. Re1 {[%clk 0:01:47.4]} 22...
f3 {[%clk 0:01:59.4]} 23. Bf1 {[%clk 0:01:27.7]} 23... Bg4 {[%clk 0:01:47.5]}
24. h3 {[%clk 0:01:18.5]} 24... Bh5 {[%clk 0:01:47.3]} 25. Re3 {[%clk
0:01:15.5]} 25... Qe6 {[%clk 0:01:29.5]} 26. Kh2 {[%clk 0:01:07]} 26... Kh8
{[%clk 0:01:18.6]} 27. Qd2 {[%clk 0:01:06.5]} 27... Bg6 {[%clk 0:01:17.2]} 28.
Rce1 {[%clk 0:01:05.6]} 28... Nf6 {[%clk 0:01:15]} 29. Nxf6 {[%clk 0:01:00.9]}
29... Qxf6 {[%clk 0:01:15.9]} 30. h4 {[%clk 0:00:48.7]} 30... h5 {[%clk
0:01:14.2]} 31. Bh3 {[%clk 0:00:48.1]} 31... Bh6 {[%clk 0:01:06]} 32. Qd1 {[%clk
0:00:25.8]} 32... Kh7 {[%clk 0:00:58.5]} 33. Qc2 {[%clk 0:00:24.8]} 33... Bxe3
{[%clk 0:00:50.5]} 34. Rxe3 {[%clk 0:00:25.7]} 34... Qg7 {[%clk 0:00:46.4]} 35.
Qb2 {[%clk 0:00:25.2]} 35... Bf5 {[%clk 0:00:44.2]} 36. Bf1 {[%clk 0:00:24.9]}
36... Bg6 {[%clk 0:00:34.4]} 37. Re1 {[%clk 0:00:23.1]} 37... Bf5 {[%clk
0:00:29.3]} 38. Qd2 {[%clk 0:00:22.7]} 38... Qh6 {[%clk 0:00:27.8]} 39. Qb2
{[%clk 0:00:22.2]} 39... Qg6 {[%clk 0:00:27.5]} 40. Qc2 {[%clk 0:00:21.7]} 40...
Be6 {[%clk 0:00:23.3]} 41. Bd2 {[%clk 0:00:21.3]} 41... Rg8 {[%clk 0:00:17.4]}
42. Re3 {[%clk 0:00:20]} 42... Rf4 {[%clk 0:00:14.7]} 43. Re4 {[%clk 0:00:17.3]}
43... Rf5 {[%clk 0:00:08.7]} 44. Be3 {[%clk 0:00:16.6]} 44... Rf7 {[%clk
0:00:08.3]} 45. Bc1 {[%clk 0:00:16.6]} 45... Bf5 {[%clk 0:00:08.3]} 46. Re1
{[%clk 0:00:17.2]} 46... Be6 {[%clk 0:00:06.5]} 47. Qd2 {[%clk 0:00:17.6]} 47...
Rf4 {[%clk 0:00:06.7]} 48. Re4 {[%clk 0:00:17.3]} 48... Rxe4 {[%clk 0:00:05.2]}
49. dxe4 {[%clk 0:00:18.2]} 49... Bg4 {[%clk 0:00:05.2]} 50. Qd5 {[%clk
0:00:17.6]} 50... Rg7 {[%clk 0:00:05.5]} 51. a6 {[%clk 0:00:17.6]} 51... b6
{[%clk 0:00:05.6]} 52. Bg5 {[%clk 0:00:18]} 52... Qe6 {[%clk 0:00:04.4]} 53. Qa8
{[%clk 0:00:16.3]} 53... Rf7 {[%clk 0:00:03.3]} 54. Bd3 {[%clk 0:00:13.3]} 54...
Qg6 {[%clk 0:00:03.7]} 55. Qd5 {[%clk 0:00:13]} 55... Be6 {[%clk 0:00:03.1]} 56.
Qc6 {[%clk 0:00:12.6]} 56... Bd7 {[%clk 0:00:03]} 57. Qd5 {[%clk 0:00:12.7]}
57... Be6 {[%clk 0:00:03.5]} 58. Qxd6 {[%clk 0:00:13]} 58... Rd7 {[%clk
0:00:03.5]} 59. Qxe5 {[%clk 0:00:11.2]} 59... Rxd3 {[%clk 0:00:03.8]} 60. Qb8
{[%clk 0:00:10.7]} 60... Rd7 {[%clk 0:00:04.1]} 61. Bf4 {[%clk 0:00:10.5]} 61...
Bxc4 {[%clk 0:00:02]} 62. Be5 {[%clk 0:00:10.6]} 62... Rg7 {[%clk 0:00:02.5]}
63. Qb7 {[%clk 0:00:07]} 1-0

[Event "*** Titled Tuesday Blitz"]
[Site "Chess.com"]
[Date "2020.03.03"]
[Round "6"]
[White "VerdeNotte"]
[Black "Barcelona_Guy"]
[Result "0-1"]
[WhiteElo "2740"]
[BlackElo "2596"]
[TimeControl "180+1"]
[EndTime "14:03:46 PST"]
[Termination "Barcelona_Guy won by resignation"]

1. g3 {[%clk 0:03:00.9]} 1... d5 {[%clk 0:02:59.1]} 2. d4 {[%clk 0:02:56.8]}
2... Nf6 {[%clk 0:02:57.7]} 3. Bg2 {[%clk 0:02:57]} 3... Bf5 {[%clk 0:02:58.3]}
4. c4 {[%clk 0:02:55.8]} 4... e6 {[%clk 0:02:58.1]} 5. Nc3 {[%clk 0:02:55.8]}
5... h6 {[%clk 0:02:57.7]} 6. Qb3 {[%clk 0:02:55.8]} 6... Nc6 {[%clk 0:02:56.5]}
7. cxd5 {[%clk 0:02:55.5]} 7... exd5 {[%clk 0:02:47]} 8. Nf3 {[%clk 0:02:52.5]}
8... Nb4 {[%clk 0:02:44.1]} 9. O-O {[%clk 0:02:37.7]} 9... Bc2 {[%clk
0:02:40.4]} 10. Qa3 {[%clk 0:02:37.8]} 10... Nc6 {[%clk 0:02:37.5]} 11. b4
{[%clk 0:02:36.4]} 11... Bxb4 {[%clk 0:02:37.7]} 12. Qb2 {[%clk 0:02:36.2]}
12... Bh7 {[%clk 0:02:17.5]} 13. Ne5 {[%clk 0:02:35.9]} 13... Rb8 {[%clk
0:02:12]} 14. Nb5 {[%clk 0:02:18]} 14... O-O {[%clk 0:02:07.3]} 15. Nxa7 {[%clk
0:02:17]} 15... Qd6 {[%clk 0:01:38.9]} 16. Nb5 {[%clk 0:02:16.3]} 16... Qe7
{[%clk 0:01:38.7]} 17. Bf4 {[%clk 0:02:14.1]} 17... Ba5 {[%clk 0:01:35.9]} 18.
Qc1 {[%clk 0:02:08.4]} 18... Nxe5 {[%clk 0:01:33.7]} 19. dxe5 {[%clk 0:02:03.5]}
19... Ne4 {[%clk 0:01:33.5]} 20. Rd1 {[%clk 0:01:48]} 20... c6 {[%clk
0:01:30.4]} 21. Nd6 {[%clk 0:01:47.9]} 21... Nxd6 {[%clk 0:01:19]} 22. exd6
{[%clk 0:01:47.6]} 22... Qxe2 {[%clk 0:01:19.9]} 23. d7 {[%clk 0:01:20.6]} 23...
Ra8 {[%clk 0:01:04.5]} 24. Qc5 {[%clk 0:01:07.2]} 24... Qe6 {[%clk 0:00:58.1]}
25. a4 {[%clk 0:00:34.6]} 25... Qxd7 {[%clk 0:00:55.5]} 26. Ra3 {[%clk
0:00:34.9]} 26... Rfe8 {[%clk 0:00:53.8]} 27. h4 {[%clk 0:00:34.4]} 27... Qf5
{[%clk 0:00:46.3]} 28. Rf3 {[%clk 0:00:33.4]} 28... Qc2 {[%clk 0:00:43.6]} 29.
Qd4 {[%clk 0:00:26.5]} 29... Bb6 {[%clk 0:00:35.7]} 30. Qd2 {[%clk 0:00:18.4]}
30... Qxd2 {[%clk 0:00:33.7]} 31. Rxd2 {[%clk 0:00:18.6]} 31... Rxa4 {[%clk
0:00:32.5]} 32. Rb3 {[%clk 0:00:18.8]} 32... Ba5 {[%clk 0:00:26.3]} 33. Rdb2
{[%clk 0:00:16.4]} 33... b5 {[%clk 0:00:25.6]} 34. Bh3 {[%clk 0:00:16.8]} 34...
Ra1+ {[%clk 0:00:20.5]} 35. Kh2 {[%clk 0:00:17]} 35... Rd8 {[%clk 0:00:17]} 36.
g4 {[%clk 0:00:14.8]} 36... d4 {[%clk 0:00:16]} 37. g5 {[%clk 0:00:15.3]} 37...
hxg5 {[%clk 0:00:15.4]} 38. Bxg5 {[%clk 0:00:15.2]} 38... Bc7+ {[%clk
0:00:14.3]} 39. Kg2 {[%clk 0:00:14.8]} 39... f6 {[%clk 0:00:13.5]} 40. Be6+
{[%clk 0:00:14.3]} 40... Kh8 {[%clk 0:00:13.1]} 41. Bd2 {[%clk 0:00:15.2]} 41...
Bg8 {[%clk 0:00:12.5]} 42. Bxg8 {[%clk 0:00:14.1]} 42... Kxg8 {[%clk 0:00:13.4]}
43. Bb4 {[%clk 0:00:14.9]} 43... d3 {[%clk 0:00:12.7]} 44. Rd2 {[%clk
0:00:14.7]} 44... Ra4 {[%clk 0:00:11]} 45. Bc5 {[%clk 0:00:14.7]} 45... Rxh4
{[%clk 0:00:09.7]} 46. Rbxd3 {[%clk 0:00:14.4]} 46... Rxd3 {[%clk 0:00:10.6]}
47. Rxd3 {[%clk 0:00:15.3]} 47... Rc4 {[%clk 0:00:11]} 48. Be3 {[%clk
0:00:14.8]} 48... Be5 {[%clk 0:00:11.1]} 49. Rd7 {[%clk 0:00:14.7]} 49... b4
{[%clk 0:00:09.2]} 50. Rb7 {[%clk 0:00:15]} 50... c5 {[%clk 0:00:09.3]} 51. Kf3
{[%clk 0:00:15.6]} 51... Rc3 {[%clk 0:00:08.7]} 52. Ke4 {[%clk 0:00:15.9]} 52...
b3 {[%clk 0:00:08.7]} 53. Kf5 {[%clk 0:00:16.1]} 53... Kh7 {[%clk 0:00:04.6]}
54. Ke6 {[%clk 0:00:11.7]} 54... b2 {[%clk 0:00:04.4]} 55. Kf7 {[%clk
0:00:06.6]} 55... Rc1 {[%clk 0:00:02.5]} 56. f4 {[%clk 0:00:04.2]} 56... b1=Q
{[%clk 0:00:01.6]} 57. Rxb1 {[%clk 0:00:02.9]} 57... Rxb1 {[%clk 0:00:02.5]} 58.
fxe5 {[%clk 0:00:03.8]} 58... fxe5 {[%clk 0:00:03.4]} 59. Bxc5 {[%clk
0:00:04.7]} 59... e4 {[%clk 0:00:03.6]} 60. Ke6 {[%clk 0:00:05]} 60... e3 {[%clk
0:00:04]} 61. Bd4 {[%clk 0:00:05.2]} 61... e2 {[%clk 0:00:04.2]} 62. Bc3 {[%clk
0:00:06.1]} 62... e1=Q+ {[%clk 0:00:05.1]} 63. Bxe1 {[%clk 0:00:07]} 63... Rxe1+
{[%clk 0:00:05.7]} 64. Kf5 {[%clk 0:00:07.9]} 64... Rg1 {[%clk 0:00:06.6]} 65.
Kf4 {[%clk 0:00:08.8]} 65... Rg6 {[%clk 0:00:07.4]} 66. Kf3 {[%clk 0:00:09.7]}
66... Kh6 {[%clk 0:00:08.3]} 67. Kf2 {[%clk 0:00:10.6]} 67... Kh5 {[%clk
0:00:08.9]} 68. Kf3 {[%clk 0:00:11.5]} 68... Kh4 {[%clk 0:00:09.8]} 0-1

[Event "*** Titled Tuesday Blitz"]
[Site "Chess.com"]
[Date "2020.03.03"]
[Round "6"]
[White "Resignify"]
[Black "HZMC92"]
[Result "0-1"]
[WhiteElo "2207"]
[BlackElo "2374"]
[TimeControl "180+1"]
[EndTime "14:03:50 PST"]
[Termination "HZMC92 won by checkmate"]

1. Nf3 {[%clk 0:03:00.9]} 1... d5 {[%clk 0:02:52.6]} 2. c4 {[%clk 0:03:00.3]}
2... e6 {[%clk 0:02:51.5]} 3. g3 {[%clk 0:02:59.9]} 3... Nf6 {[%clk 0:02:50.6]}
4. Bg2 {[%clk 0:03:00]} 4... Be7 {[%clk 0:02:50.5]} 5. O-O {[%clk 0:02:59.3]}
5... O-O {[%clk 0:02:50]} 6. d3 {[%clk 0:02:59.5]} 6... b6 {[%clk 0:02:49.5]} 7.
cxd5 {[%clk 0:02:55.2]} 7... Nxd5 {[%clk 0:02:47]} 8. Nc3 {[%clk 0:02:50.8]}
8... Bb7 {[%clk 0:02:47]} 9. Nxd5 {[%clk 0:02:43.7]} 9... Bxd5 {[%clk
0:02:46.1]} 10. Bd2 {[%clk 0:02:43.8]} 10... Bf6 {[%clk 0:02:44.9]} 11. Qc2
{[%clk 0:02:36.2]} 11... c5 {[%clk 0:02:43.7]} 12. Bc3 {[%clk 0:02:33.5]} 12...
Nc6 {[%clk 0:02:42.8]} 13. Bxf6 {[%clk 0:02:28.8]} 13... Qxf6 {[%clk 0:02:36.2]}
14. Qc3 {[%clk 0:02:21.1]} 14... Nd4 {[%clk 0:01:52.8]} 15. Nxd4 {[%clk
0:02:07.6]} 15... cxd4 {[%clk 0:01:44]} 16. Qb4 {[%clk 0:02:06]} 16... Bxg2
{[%clk 0:01:36.3]} 17. Kxg2 {[%clk 0:02:05.8]} 17... Qe5 {[%clk 0:01:35.4]} 18.
Rfe1 {[%clk 0:01:57.2]} 18... Rfc8 {[%clk 0:01:32.6]} 19. Qd2 {[%clk 0:01:53.4]}
19... Rc5 {[%clk 0:01:28.8]} 20. Rec1 {[%clk 0:01:51.6]} 20... Rac8 {[%clk
0:01:27.7]} 21. Rxc5 {[%clk 0:01:50.9]} 21... Rxc5 {[%clk 0:01:27.4]} 22. Rc1
{[%clk 0:01:43.9]} 22... Rxc1 {[%clk 0:01:20.2]} 23. Qxc1 {[%clk 0:01:44.8]}
23... g6 {[%clk 0:01:20.5]} 24. Qc4 {[%clk 0:00:49.6]} 24... b5 {[%clk
0:01:20.3]} 25. Qb4 {[%clk 0:00:40.8]} 25... a6 {[%clk 0:01:07.1]} 26. a3 {[%clk
0:00:31.2]} 26... h5 {[%clk 0:00:56.4]} 27. h4 {[%clk 0:00:21.5]} 27... Qd5+
{[%clk 0:00:32.3]} 28. Kg1 {[%clk 0:00:17.3]} 28... Kg7 {[%clk 0:00:27.6]} 29.
Qd2 {[%clk 0:00:15.9]} 29... e5 {[%clk 0:00:18.8]} 30. f3 {[%clk 0:00:14.9]}
30... Qb3 {[%clk 0:00:18.8]} 31. Kf2 {[%clk 0:00:14.6]} 31... a5 {[%clk
0:00:18.9]} 32. Qc1 {[%clk 0:00:13.6]} 32... b4 {[%clk 0:00:18.7]} 33. axb4
{[%clk 0:00:13]} 33... Qxb4 {[%clk 0:00:18.5]} 34. Qc2 {[%clk 0:00:09.9]} 34...
a4 {[%clk 0:00:18.6]} 35. Qc7 {[%clk 0:00:06.9]} 35... Kf6 {[%clk 0:00:17.3]}
36. Qc6+ {[%clk 0:00:06.1]} 36... Kg7 {[%clk 0:00:17.2]} 37. Qc7 {[%clk
0:00:06]} 37... Qb5 {[%clk 0:00:17.7]} 38. Qc2 {[%clk 0:00:03.9]} 38... g5
{[%clk 0:00:15.3]} 39. Qc1 {[%clk 0:00:04]} 39... gxh4 {[%clk 0:00:15.2]} 40.
gxh4 {[%clk 0:00:04.9]} 40... f6 {[%clk 0:00:15.8]} 41. Qg1+ {[%clk 0:00:04.6]}
41... Kf7 {[%clk 0:00:16]} 42. Qc1 {[%clk 0:00:05.2]} 42... Kg6 {[%clk
0:00:15.9]} 43. Qg1+ {[%clk 0:00:04.9]} 43... Kf5 {[%clk 0:00:16.1]} 44. Qc1
{[%clk 0:00:05]} 44... Qe8 {[%clk 0:00:13.4]} 45. Qc4 {[%clk 0:00:03.9]} 45...
Qg6 {[%clk 0:00:12.7]} 46. Qd5 {[%clk 0:00:03.2]} 46... Qg7 {[%clk 0:00:10.7]}
47. Qe4+ {[%clk 0:00:02.8]} 47... Ke6 {[%clk 0:00:11.3]} 48. Qc6+ {[%clk
0:00:03.6]} 48... Kf7 {[%clk 0:00:11.8]} 49. Qxa4 {[%clk 0:00:03.3]} 49... Qh6
{[%clk 0:00:12.1]} 50. Qd7+ {[%clk 0:00:03.2]} 50... Kg6 {[%clk 0:00:11.8]} 51.
Qe8+ {[%clk 0:00:03.2]} 51... Kg7 {[%clk 0:00:11.7]} 52. Qe7+ {[%clk 0:00:03.4]}
52... Kg6 {[%clk 0:00:12.3]} 53. Qe8+ {[%clk 0:00:03.4]} 53... Kf5 {[%clk
0:00:11]} 54. Qd7+ {[%clk 0:00:03.2]} 54... Kg6 {[%clk 0:00:11.6]} 55. Qh3
{[%clk 0:00:02.1]} 55... Qe3+ {[%clk 0:00:11.2]} 56. Kf1 {[%clk 0:00:02.3]}
56... Qc1+ {[%clk 0:00:11.4]} 57. Kg2 {[%clk 0:00:02.3]} 57... Qxb2 {[%clk
0:00:11.8]} 58. Kf2 {[%clk 0:00:01.7]} 58... Qc1 {[%clk 0:00:11.5]} 59. Qg2+
{[%clk 0:00:01.8]} 59... Kf7 {[%clk 0:00:11.6]} 60. Qf1 {[%clk 0:00:01.3]} 60...
Qe3+ {[%clk 0:00:12]} 61. Kg2 {[%clk 0:00:01.7]} 61... Qf4 {[%clk 0:00:12.5]}
62. Qf2 {[%clk 0:00:02.1]} 62... f5 {[%clk 0:00:12]} 63. Qg3 {[%clk 0:00:02.3]}
63... Qe3 {[%clk 0:00:11.3]} 64. Qf2 {[%clk 0:00:01.4]} 64... Qf4 {[%clk
0:00:10.1]} 65. Qg3 {[%clk 0:00:01.6]} 65... Qe3 {[%clk 0:00:09.2]} 66. Qf2
{[%clk 0:00:01.3]} 66... Qh6 {[%clk 0:00:10.1]} 67. Qg3 {[%clk 0:00:01.4]} 67...
Kf6 {[%clk 0:00:10.5]} 68. Qf2 {[%clk 0:00:01.3]} 68... Qg6+ {[%clk 0:00:10.5]}
69. Qg3 {[%clk 0:00:01.6]} 69... Qh6 {[%clk 0:00:11.2]} 70. Qf2 {[%clk
0:00:01.6]} 70... f4 {[%clk 0:00:11.9]} 71. Qg3 {[%clk 0:00:02.5]} 71... fxg3
{[%clk 0:00:12.1]} 72. Kxg3 {[%clk 0:00:03.4]} 72... Qg6+ {[%clk 0:00:12.7]} 73.
Kh3 {[%clk 0:00:04.1]} 73... Kf5 {[%clk 0:00:13]} 74. Kh2 {[%clk 0:00:05]} 74...
Kf4 {[%clk 0:00:13.4]} 75. Kh3 {[%clk 0:00:05.7]} 75... Qg3# {[%clk 0:00:13.3]}
0-1

[Event "*** Titled Tuesday Blitz"]
[Site "Chess.com"]
[Date "2020.03.03"]
[Round "6"]
[White "M1711"]
[Black "RoelandPruijssers"]
[Result "1-0"]
[WhiteElo "2545"]
[BlackElo "2667"]
[TimeControl "180+1"]
[EndTime "14:03:53 PST"]
[Termination "M1711 won on time"]

1. e4 {[%clk 0:03:00.9]} 1... d5 {[%clk 0:02:59.3]} 2. exd5 {[%clk 0:03:00.6]}
2... Qxd5 {[%clk 0:03:00.2]} 3. Nc3 {[%clk 0:03:00.4]} 3... Qa5 {[%clk
0:03:00.7]} 4. Bc4 {[%clk 0:02:56.7]} 4... Nf6 {[%clk 0:02:59.7]} 5. d3 {[%clk
0:02:56.4]} 5... Bg4 {[%clk 0:02:58.9]} 6. f3 {[%clk 0:02:55.4]} 6... Bd7 {[%clk
0:02:57.1]} 7. Bd2 {[%clk 0:02:47.4]} 7... Qb6 {[%clk 0:02:55.4]} 8. Qe2 {[%clk
0:02:40.4]} 8... e6 {[%clk 0:02:49.8]} 9. O-O-O {[%clk 0:02:34.3]} 9... Be7
{[%clk 0:02:33.3]} 10. Nh3 {[%clk 0:02:33.4]} 10... Nc6 {[%clk 0:02:28.2]} 11.
Kb1 {[%clk 0:02:14.9]} 11... Nd4 {[%clk 0:02:14.1]} 12. Qf2 {[%clk 0:02:12.7]}
12... O-O-O {[%clk 0:02:10.3]} 13. Ng5 {[%clk 0:02:07.9]} 13... Be8 {[%clk
0:02:05.2]} 14. Rhe1 {[%clk 0:02:02.2]} 14... Ba3 {[%clk 0:01:33.7]} 15. Bc1
{[%clk 0:01:51.7]} 15... Bb4 {[%clk 0:01:30.2]} 16. Bd2 {[%clk 0:01:28.4]} 16...
h6 {[%clk 0:01:20.5]} 17. Nge4 {[%clk 0:01:27.6]} 17... Bc6 {[%clk 0:00:49.5]}
18. Nxf6 {[%clk 0:01:21.4]} 18... gxf6 {[%clk 0:00:49.4]} 19. Ne4 {[%clk
0:01:20.8]} 19... Bxd2 {[%clk 0:00:47.4]} 20. Qxd2 {[%clk 0:01:16.8]} 20... Bxe4
{[%clk 0:00:44.1]} 21. fxe4 {[%clk 0:01:13.4]} 21... Qd6 {[%clk 0:00:39.6]} 22.
Rf1 {[%clk 0:01:02.4]} 22... f5 {[%clk 0:00:38.9]} 23. exf5 {[%clk 0:00:57.7]}
23... Nxf5 {[%clk 0:00:38.6]} 24. g3 {[%clk 0:00:57.8]} 24... h5 {[%clk
0:00:38.2]} 25. Rf4 {[%clk 0:00:46.2]} 25... h4 {[%clk 0:00:31.7]} 26. g4 {[%clk
0:00:45.5]} 26... Nd4 {[%clk 0:00:28.7]} 27. Rxf7 {[%clk 0:00:44.4]} 27... h3
{[%clk 0:00:28.4]} 28. g5 {[%clk 0:00:41.5]} 28... Rdg8 {[%clk 0:00:24.3]} 29.
Rg1 {[%clk 0:00:40.8]} 29... Rg6 {[%clk 0:00:20.6]} 30. a3 {[%clk 0:00:36.3]}
30... Rhg8 {[%clk 0:00:18.1]} 31. Rg3 {[%clk 0:00:35.3]} 31... Nf5 {[%clk
0:00:17.4]} 32. Rxf5 {[%clk 0:00:32.9]} 32... exf5 {[%clk 0:00:18.3]} 33. Bxg8
{[%clk 0:00:32.7]} 33... Rxg8 {[%clk 0:00:19.2]} 34. Rxh3 {[%clk 0:00:32.4]}
34... f4 {[%clk 0:00:19.7]} 35. Rf3 {[%clk 0:00:29.2]} 35... Rxg5 {[%clk
0:00:18]} 36. Qxf4 {[%clk 0:00:24.6]} 36... Rg1+ {[%clk 0:00:17.3]} 37. Ka2
{[%clk 0:00:24.8]} 37... Qxf4 {[%clk 0:00:17.6]} 38. Rxf4 {[%clk 0:00:24.7]}
38... Rg2 {[%clk 0:00:18.3]} 39. Kb3 {[%clk 0:00:13.8]} 39... Rxh2 {[%clk
0:00:17.9]} 40. Rf7 {[%clk 0:00:14.4]} 40... b6 {[%clk 0:00:18]} 41. Kc3 {[%clk
0:00:13.4]} 41... Kb7 {[%clk 0:00:18.3]} 42. b4 {[%clk 0:00:12]} 42... Rg2
{[%clk 0:00:18.1]} 43. Rf5 {[%clk 0:00:11.8]} 43... a6 {[%clk 0:00:18.3]} 44. a4
{[%clk 0:00:11.3]} 44... Rh2 {[%clk 0:00:16.8]} 45. Kb3 {[%clk 0:00:11.2]} 45...
Rh3 {[%clk 0:00:15.2]} 46. Rg5 {[%clk 0:00:11.1]} 46... Rf3 {[%clk 0:00:14.5]}
47. Kc4 {[%clk 0:00:10.8]} 47... Rf2 {[%clk 0:00:12]} 48. c3 {[%clk 0:00:10.2]}
48... Ra2 {[%clk 0:00:11.8]} 49. a5 {[%clk 0:00:09]} 49... bxa5 {[%clk
0:00:11.3]} 50. Rxa5 {[%clk 0:00:07.9]} 50... Rh2 {[%clk 0:00:12]} 51. Re5
{[%clk 0:00:07.3]} 51... Rh4+ {[%clk 0:00:11.6]} 52. d4 {[%clk 0:00:07.6]} 52...
Rh3 {[%clk 0:00:12.3]} 53. Rg5 {[%clk 0:00:05.4]} 53... Rf3 {[%clk 0:00:12]} 54.
Rg2 {[%clk 0:00:05.3]} 54... Rh3 {[%clk 0:00:11.8]} 55. Rd2 {[%clk 0:00:05.8]}
55... Rh5 {[%clk 0:00:09.1]} 56. d5 {[%clk 0:00:04.7]} 56... Kb6 {[%clk
0:00:07.3]} 57. Rd4 {[%clk 0:00:04.8]} 57... Rh3 {[%clk 0:00:03.7]} 58. Re4
{[%clk 0:00:05]} 58... Rg3 {[%clk 0:00:01.4]} 59. Re6+ {[%clk 0:00:05.3]} 59...
Kb7 {[%clk 0:00:02.3]} 60. Rf6 {[%clk 0:00:05.4]} 60... Rg4+ {[%clk 0:00:02.6]}
61. Kc5 {[%clk 0:00:05.6]} 61... Rg3 {[%clk 0:00:02.6]} 62. c4 {[%clk 0:00:06]}
62... Rg4 {[%clk 0:00:01.7]} 63. Rf7 {[%clk 0:00:06.3]} 63... Kb8 {[%clk
0:00:01.1]} 64. Rd7 {[%clk 0:00:03.5]} 64... Kc8 {[%clk 0:00:01]} 65. Rh7 {[%clk
0:00:04]} 65... Kb8 {[%clk 0:00:01.7]} 66. Rh6 {[%clk 0:00:04.2]} 66... Kb7
{[%clk 0:00:01.8]} 67. Rf6 {[%clk 0:00:04.7]} 1-0